fUSD/lending_fUSD_20240212
["ID","MTS","AMOUNT","RATE_DAILY","PERIOD"]
[313824798,1707739845609,-500.0,0.00022673,2]
[313824800,1707739845618,-500.0,0.00022673,2]
[313824802,1707739845627,-540.26,0.00022673,2]
[313824804,1707739845636,-522.6723566,0.00022673,2]
[313824807,1707739845645,-500.0,0.00022673,2]
[313824809,1707739845655,-500.0,0.00022673,2]
[313824811,1707739845664,-500.0,0.00022673,2]
[313824813,1707739845673,-500.0,0.00022673,2]
[313824815,1707739845682,-500.0,0.00022673,2]
[313824816,1707739845691,-960.59,0.00022673,2]
[313824817,1707739845700,-1466.73,0.00022673,2]
[313824819,1707739845709,-500.0,0.00022673,2]
[313824821,1707739845719,-1057.23,0.00022673,2]
[313824824,1707739845728,-500.0,0.00022673,2]
[313824826,1707739845737,-548.72293137,0.00022674,2]
[313824828,1707739845747,-530.03396422,0.00022674,2]
[313824830,1707739845756,-500.0,0.00022674,2]
[313824832,1707739845765,-440.04758112,0.00022674,2]
[313824834,1707739845774,-1000.0,0.000227,2]
[313824836,1707739845784,-421.94,0.000227,2]
[313824838,1707739845793,-342.95,0.000227,2]
[313824839,1707739845802,-421.94,0.000227,2]
[313824840,1707739845811,-342.95,0.000227,2]
[313824841,1707739845821,-208.96,0.000227,2]
[313824842,1707739845830,-150.0,0.000227,2]
[313824843,1707739845839,-238.6,0.000227,2]
[313824844,1707739845848,-342.95,0.000227,2]
[313824845,1707739845858,-421.94,0.000227,2]
[313824846,1707739845870,-300.0,0.000227,2]
[313824847,1707739845879,-421.94,0.000227,2]
[313824848,1707739845888,-300.0,0.000227,2]
[313824849,1707739845898,-421.94,0.000227,2]
[313824850,1707739845908,-300.0,0.000227,2]
[313824851,1707739845917,-685.9,0.000227,2]
[313824852,1707739845927,-150.0,0.000227,2]
[313824853,1707739845936,-421.94,0.000227,2]
[313824854,1707739845946,-342.95,0.000227,2]
[313824855,1707739845957,-1300.0,0.000227,8]
[313824856,1707739845967,-1244.48998614,0.00022721,2]
[313824857,1707739845976,-5000.0,0.0002273,2]
[313824858,1707739845987,-150.0,0.00022731,2]
[313824859,1707739845997,-150.0,0.00022735,2]
[313824860,1707739846007,-150.0,0.00022752,2]
[313824861,1707739846016,-150.0,0.00022753,2]
[313824862,1707739846025,-150.0,0.00022755,2]
[313824863,1707739846035,-150.0,0.00022758,2]
[313824864,1707739846044,-150.0,0.00022765,2]
[313824865,1707739846054,-150.0,0.00022766,2]
[313824866,1707739846063,-1700.0,0.000228,8]
[313824867,1707739846074,-150.0,0.00022802,2]
[313824868,1707739846083,-150.0,0.00022804,2]
[313824869,1707739846092,-150.0,0.00022805,2]
[313824870,1707739846102,-150.0,0.00022813,2]
[313824871,1707739846111,-150.0,0.00022815,2]
[313824873,1707739846120,-150.0,0.00022823,2]
[313824875,1707739846130,-150.0,0.00022825,2]
[313824877,1707739846139,-150.0,0.0002283,2]
[313824879,1707739846148,-150.0,0.00022835,2]
[313824881,1707739846157,-150.0,0.00022844,2]
[313824882,1707739846167,-150.0,0.00022845,2]
[313824883,1707739846176,-150.0,0.00022857,2]
[313824884,1707739846186,-150.0,0.00022859,2]
[313824885,1707739846195,-150.0,0.00022866,2]
[313824886,1707739846204,-150.0,0.00022867,2]
[313824887,1707739846214,-150.0,0.00022872,2]
[313824888,1707739846223,-150.0,0.00022876,2]
[313824889,1707739846232,-150.0,0.00022882,2]
[313824890,1707739846242,-150.0,0.00022884,2]
[313824891,1707739846251,-150.0,0.0002289,2]
[313824892,1707739846260,-150.0,0.00022898,2]
[313824893,1707739846270,-178.15624711,0.00022898,2]
[313824894,1707739846279,-178.15624709,0.00022899,2]
[313824895,1707739846289,-178.15624709,0.00022899,2]
[313824896,1707739846298,-2937.10411449,0.000229,2]
[313824897,1707739846307,-12052.5881,0.000229,2]
[313824898,1707739846317,-195.90334972,0.000229,2]
[313824899,1707739846328,-3001.21478391,0.000229,2]
[313824900,1707739846337,-160.74905432,0.000229,2]
[313824901,1707739846346,-4632.49429319,0.000229,2]
[313824902,1707739846356,-654.13,0.000229,2]
[313824903,1707739846365,-273.30445944,0.000229,2]
[313824904,1707739846375,-816.33917794,0.000229,2]
[313824905,1707739846384,-1036.51807925,0.000229,6]
[313824906,1707739846394,-178.15624709,0.000229,2]
[313824907,1707739846454,-300.0,0.000229,8]
[313824908,1707739846463,-150.0,0.00022906,2]
[313824909,1707739846472,-150.0,0.00022918,2]
[313824910,1707739846481,-150.0,0.00022936,2]
[313824911,1707739846491,-150.0,0.00022939,2]
[313824912,1707739846500,-150.0,0.00022941,2]
[313824913,1707739846509,-150.0,0.00022945,2]
[313824914,1707739846517,-1194.6,0.00022945,2]
[313824915,1707739846527,-560.03,0.00022945,2]
[313824916,1707739846536,-500.0,0.00022945,2]
[313824917,1707739846545,-500.0,0.00022945,2]
[313824918,1707739846554,-500.0,0.00022945,2]
[313824919,1707739846563,-500.0,0.00022945,2]
[313824920,1707739846572,-954.26,0.00022945,2]
[313824921,1707739846582,-530.68,0.00022945,2]
[313824922,1707739846591,-344.81,0.00022945,2]
[313824923,1707739846600,-500.0,0.00022945,2]
[313824924,1707739846609,-500.0,0.00022945,2]
[313824925,1707739846618,-500.0,0.00022945,2]
[313824926,1707739846627,-500.0,0.00022945,2]
[313824927,1707739846636,-782.75,0.00022945,2]
[313824928,1707739846645,-2351.67,0.00022945,2]
[313824929,1707739846655,-500.0,0.00022945,2]
[313824930,1707739846664,-2577.05,0.00022945,2]
[313824931,1707739846673,-270.51536316,0.00022945,2]
[313824932,1707739846682,-573.5,0.00022945,2]
[313824933,1707739846691,-888.57,0.00022945,2]
[313824934,1707739846700,-500.0,0.00022945,2]
[313824935,1707739846709,-500.0,0.00022945,2]
[313824936,1707739846718,-500.0,0.00022945,2]
[313824937,1707739846726,-1483.71,0.00022945,2]
[313824938,1707739846735,-500.0,0.00022945,2]
[313824939,1707739846744,-500.0,0.00022945,2]
[313824940,1707739846753,-666.68,0.00022945,2]
[313824941,1707739846762,-500.0,0.00022946,2]
[313824942,1707739846771,-500.0,0.00022946,2]
[313824943,1707739846780,-500.0,0.00022946,2]
[313824944,1707739846789,-500.0,0.00022946,2]
[313824945,1707739846798,-500.0,0.00022946,2]
[313824946,1707739846806,-500.0,0.00022946,2]
[313824947,1707739846815,-500.0,0.00022946,2]
[313824948,1707739846825,-500.0,0.00022946,2]
[313824949,1707739846834,-500.0,0.00022946,2]
[313824950,1707739846843,-500.0,0.00022946,2]
[313824951,1707739846853,-500.0,0.00022946,2]
[313824952,1707739846864,-500.0,0.00022946,2]
[313824953,1707739846873,-500.0,0.00022946,2]
[313824954,1707739846882,-162.59,0.00022946,2]
[313824955,1707739846891,-500.0,0.00022946,2]
[313824956,1707739846901,-500.0,0.00022946,2]
[313824957,1707739846910,-500.0,0.00022946,2]
[313824958,1707739846919,-500.0,0.00022946,2]
[313824959,1707739846928,-500.0,0.00022946,2]
[313824960,1707739846938,-500.0,0.00022946,2]
[313824961,1707739846947,-500.0,0.00022946,2]
[313824962,1707739846956,-500.0,0.00022946,2]
[313824963,1707739846966,-500.0,0.00022946,2]
[313824964,1707739846975,-500.0,0.00022946,2]
[313824965,1707739846984,-500.0,0.00022946,2]
[313824966,1707739846994,-500.0,0.00022946,2]
[313824967,1707739847002,-313.83822338,0.00022946,10]
[313824968,1707739847011,-12.81810522,0.00022946,2]
[313824969,1707739847028,-487.18189478,0.00022946,2]
[313824970,1707739847038,-500.0,0.00022946,2]
[313824971,1707739847047,-500.0,0.00022946,2]
[313824972,1707739847056,-500.0,0.00022946,2]
[313824973,1707739847065,-500.0,0.00022946,2]
[313824974,1707739847074,-3920.31,0.00022946,2]
[313824975,1707739847083,-500.0,0.00022946,2]
[313824976,1707739847093,-500.0,0.00022946,2]
[313824977,1707739847102,-500.0,0.00022946,2]
[313824978,1707739847110,-1500.71,0.00022946,2]
[313824979,1707739847120,-696.17,0.00022946,2]
[313824980,1707739847128,-929.48,0.00022946,2]
[313824981,1707739847138,-500.0,0.00022946,2]
[313824982,1707739847147,-1098.65,0.00022946,2]
[313824983,1707739847156,-500.0,0.00022946,2]
[313824984,1707739847165,-500.0,0.00022946,2]
[313824985,1707739847175,-806.38,0.00022946,2]
[313824986,1707739847184,-3475.46,0.00022946,2]
[313824987,1707739847193,-500.0,0.00022946,2]
[313824988,1707739847202,-500.0,0.00022946,2]
[313824989,1707739847211,-500.0,0.00022946,2]
[313824990,1707739847220,-500.0,0.00022946,2]
[313824991,1707739847230,-500.0,0.00022946,2]
[313824992,1707739847239,-500.0,0.00022946,2]
[313824993,1707739847247,-887.91,0.00022946,2]
[313824994,1707739847257,-1240.58,0.00022946,2]
[313824995,1707739847266,-645.99,0.00022946,2]
[313824996,1707739847275,-500.0,0.00022946,2]
[313824997,1707739847285,-500.0,0.00022946,2]
[313824998,1707739847294,-500.0,0.00022946,2]
[313824999,1707739847303,-500.0,0.00022946,2]
[313825000,1707739847312,-2880.13,0.00022946,2]
[313825001,1707739847323,-500.0,0.00022946,2]
[313825002,1707739847333,-500.0,0.00022946,2]
[313825003,1707739847341,-902.64,0.00022946,2]
[313825004,1707739847351,-915.22,0.00022946,2]
[313825005,1707739847359,-500.0,0.00022946,2]
[313825006,1707739847368,-500.0,0.00022946,2]
[313825007,1707739847377,-2192.0,0.00022946,2]
[313825008,1707739847387,-984.75,0.00022946,2]
[313825009,1707739847396,-500.0,0.00022946,2]
[313825010,1707739847406,-1523.88,0.00022946,2]
[313825011,1707739847415,-500.0,0.00022946,2]
[313825012,1707739847425,-500.0,0.00022946,2]
[313825013,1707739847433,-1024.39,0.00022946,2]
[313825014,1707739847443,-500.0,0.00022946,2]
[313825015,1707739847452,-2566.67,0.00022946,2]
[313825016,1707739847461,-500.0,0.00022946,2]
[313825017,1707739847471,-1288.71,0.00022946,2]
[313825018,1707739847480,-1221.54,0.00022946,2]
[313825019,1707739847489,-2892.46,0.00022946,2]
[313825020,1707739847499,-500.0,0.00022946,2]
[313825021,1707739847508,-1309.74,0.00022946,2]
[313825022,1707739847517,-500.0,0.00022946,2]
[313825023,1707739847526,-500.0,0.00022946,2]
[313825024,1707739847535,-500.0,0.00022946,2]
[313825025,1707739847544,-1896.43,0.00022946,2]
[313825026,1707739847553,-514.17,0.00022946,2]
[313825027,1707739847562,-760.5,0.00022946,2]
[313825028,1707739847571,-1066.63,0.00022946,2]
[313825029,1707739847581,-500.0,0.00022946,2]
[313825030,1707739847590,-500.0,0.00022946,2]
[313825031,1707739847601,-500.0,0.00022946,2]
[313825032,1707739847610,-1127.39,0.00022946,2]
[313825033,1707739847619,-3150.28,0.00022946,2]
[313825034,1707739847628,-324.38571738,0.00022946,2]
[313825035,1707739847637,-9536.12,0.00022946,2]
[313825036,1707739847646,-500.0,0.00022946,2]
[313825037,1707739847655,-500.0,0.00022947,2]
[313825038,1707739847665,-454.98788388,0.00022947,2]
[313825039,1707739847674,-500.0,0.00022947,2]
[313825040,1707739847683,-500.0,0.00022947,2]
[313825041,1707739847692,-500.0,0.00022947,2]
[313825042,1707739847702,-500.0,0.00022947,2]
[313825043,1707739847711,-500.0,0.00022947,2]
[313825044,1707739847720,-500.0,0.00022947,2]
[313825045,1707739847729,-500.0,0.00022947,2]
[313825046,1707739847738,-500.0,0.00022947,2]
[313825047,1707739847747,-500.0,0.00022947,2]
[313825048,1707739847756,-340.11735995,0.00022947,2]
[313825049,1707739847765,-500.0,0.00022947,2]
[313825050,1707739847774,-300.34,0.00022947,2]
[313825051,1707739847783,-500.0,0.00022947,2]
[313825052,1707739847792,-500.0,0.00022947,2]
[313825053,1707739847802,-648.99,0.00022947,2]
[313825054,1707739847811,-500.0,0.00022947,2]
[313825055,1707739847821,-500.0,0.00022947,2]
[313825056,1707739847830,-500.0,0.00022947,2]
[313825057,1707739847839,-500.0,0.00022947,2]
[313825058,1707739847848,-500.0,0.00022947,2]
[313825059,1707739847858,-500.0,0.00022947,2]
[313825060,1707739847870,-500.0,0.00022947,2]
[313825061,1707739847879,-500.0,0.00022947,2]
[313825062,1707739847889,-500.0,0.00022947,2]
[313825063,1707739847898,-500.0,0.00022947,2]
[313825064,1707739847909,-500.0,0.00022947,2]
[313825065,1707739847918,-500.0,0.00022947,2]
[313825066,1707739847927,-500.0,0.00022947,2]
[313825067,1707739847936,-500.0,0.00022947,2]
[313825068,1707739847946,-513.64,0.00022947,2]
[313825069,1707739847956,-500.0,0.00022947,2]
[313825070,1707739847965,-500.0,0.00022947,2]
[313825071,1707739847974,-500.0,0.00022947,2]
[313825072,1707739847983,-500.0,0.00022947,2]
[313825073,1707739847992,-604.59,0.00022947,2]
[313825074,1707739848001,-500.0,0.00022947,2]
[313825075,1707739848010,-500.0,0.00022947,2]
[313825076,1707739848019,-500.0,0.00022947,2]
[313825077,1707739848028,-500.0,0.00022947,2]
[313825078,1707739848037,-500.0,0.00022947,2]
[313825079,1707739848046,-150.0,0.00022947,2]
[313825080,1707739848055,-500.0,0.00022947,2]
[313825081,1707739848063,-500.0,0.00022947,2]
[313825082,1707739848073,-309.38704035,0.00022947,2]
[313825083,1707739848083,-500.0,0.00022947,2]
[313825084,1707739848092,-500.0,0.00022947,2]
[313825085,1707739848101,-500.0,0.00022947,2]
[313825086,1707739848110,-1543.75,0.00022947,2]
[313825087,1707739848119,-500.0,0.00022947,2]
[313825088,1707739848128,-500.0,0.00022947,2]
[313825089,1707739848137,-500.0,0.00022947,2]
[313825090,1707739848146,-500.0,0.00022947,2]
[313825091,1707739848155,-500.0,0.00022947,2]
[313825092,1707739848164,-500.0,0.00022947,2]
[313825093,1707739848173,-500.0,0.00022947,2]
[313825094,1707739848182,-500.0,0.00022947,2]
[313825095,1707739848191,-500.0,0.00022947,2]
[313825096,1707739848200,-500.0,0.00022947,2]
[313825097,1707739848209,-500.0,0.00022947,2]
[313825098,1707739848219,-500.0,0.00022947,2]
[313825099,1707739848228,-500.0,0.00022947,2]
[313825100,1707739848237,-500.0,0.00022947,2]
[313825101,1707739848247,-500.0,0.00022947,2]
[313825102,1707739848255,-500.0,0.00022947,2]
[313825103,1707739848264,-500.0,0.00022947,2]
[313825104,1707739848274,-500.0,0.00022947,2]
[313825105,1707739848283,-500.0,0.00022947,2]
[313825106,1707739848293,-665.67,0.00022947,2]
[313825107,1707739848302,-500.0,0.00022947,2]
[313825108,1707739848311,-500.0,0.00022947,2]
[313825109,1707739848321,-500.0,0.00022947,2]
[313825110,1707739848330,-500.0,0.00022947,2]
[313825111,1707739848339,-654.75,0.00022947,2]
[313825112,1707739848348,-500.0,0.00022947,2]
[313825113,1707739848357,-500.0,0.00022947,2]
[313825114,1707739848366,-500.0,0.00022947,2]
[313825115,1707739848375,-1290.09,0.00022947,2]
[313825116,1707739848384,-500.0,0.00022947,2]
[313825117,1707739848394,-500.0,0.00022947,2]
[313825118,1707739848403,-500.0,0.00022947,2]
[313825119,1707739848412,-1177.55,0.00022947,2]
[313825120,1707739848421,-403.92868578,0.00022947,2]
[313825121,1707739848430,-500.0,0.00022947,2]
[313825122,1707739848440,-500.0,0.00022947,2]
[313825123,1707739848449,-500.0,0.00022947,2]
[313825124,1707739848459,-500.0,0.00022947,2]
[313825125,1707739848468,-869.38,0.00022947,2]
[313825126,1707739848478,-500.0,0.00022947,2]
[313825127,1707739848487,-500.0,0.00022947,2]
[313825128,1707739848497,-2733.12,0.00022947,2]
[313825129,1707739848507,-500.0,0.00022947,2]
[313825130,1707739848517,-522.55,0.00022947,2]
[313825131,1707739848526,-436.47714547,0.00022947,2]
[313825132,1707739848535,-500.0,0.00022947,2]
[313825133,1707739848544,-500.0,0.00022947,2]
[313825134,1707739848553,-583.13,0.00022947,2]
[313825135,1707739848562,-500.0,0.00022947,2]
[313825136,1707739848571,-500.0,0.00022947,2]
[313825137,1707739848580,-500.0,0.00022947,2]
[313825138,1707739848589,-500.0,0.00022947,2]
[313825139,1707739848598,-500.0,0.00022947,2]
[313825140,1707739848607,-500.0,0.00022947,2]
[313825141,1707739848616,-2675.25,0.00022947,2]
[313825142,1707739848624,-646.89,0.00022947,2]
[313825143,1707739848634,-423.0246549,0.00022947,2]
[313825144,1707739848643,-500.0,0.00022947,2]
[313825145,1707739848652,-500.0,0.00022947,2]
[313825146,1707739848661,-500.0,0.00022947,2]
[313825147,1707739848670,-500.0,0.00022947,2]
[313825148,1707739848679,-596.95,0.00022947,2]
[313825149,1707739848688,-500.0,0.00022947,2]
[313825150,1707739848698,-2856.37,0.00022947,2]
[313825151,1707739848707,-500.0,0.00022947,2]
[313825152,1707739848716,-355.90168453,0.00022947,2]
[313825153,1707739848725,-500.0,0.00022947,2]
[313825154,1707739848734,-500.0,0.00022947,2]
[313825155,1707739848743,-500.0,0.00022947,2]
[313825156,1707739848752,-1588.01,0.00022947,2]
[313825157,1707739848761,-1260.72,0.00022947,2]
[313825158,1707739848770,-500.0,0.00022947,2]
[313825159,1707739848779,-500.0,0.00022947,2]
[313825160,1707739848788,-500.0,0.00022947,2]
[313825161,1707739848797,-657.53,0.00022947,2]
[313825162,1707739848806,-500.0,0.00022947,2]
[313825163,1707739848815,-565.05,0.00022947,2]
[313825164,1707739848825,-235.75364063,0.00022947,2]
[313825165,1707739848833,-500.0,0.00022947,2]
[313825166,1707739848843,-500.0,0.00022947,2]
[313825167,1707739848852,-500.0,0.00022947,2]
[313825168,1707739848862,-500.0,0.00022947,2]
[313825169,1707739848871,-160.30836618,0.00022947,2]
[313825170,1707739848881,-500.0,0.00022947,2]
[313825171,1707739848890,-2002.69,0.00022947,2]
[313825172,1707739848900,-500.0,0.00022947,2]
[313825173,1707739848909,-500.0,0.00022947,2]
[313825174,1707739848917,-1097.07,0.00022947,2]
[313825175,1707739848926,-500.0,0.00022947,2]
[313825176,1707739848936,-500.0,0.00022947,2]
[313825177,1707739848946,-582.7,0.00022947,2]
[313825178,1707739848955,-500.0,0.00022947,2]
[313825179,1707739848964,-500.0,0.00022947,2]
[313825180,1707739848974,-500.0,0.00022947,2]
[313825181,1707739848983,-500.0,0.00022947,2]
[313825182,1707739848992,-500.0,0.00022947,2]
[313825183,1707739849001,-500.0,0.00022947,2]
[313825184,1707739849010,-500.0,0.00022947,2]
[313825185,1707739849019,-4799.26,0.00022947,2]
[313825186,1707739849028,-500.0,0.00022947,2]
[313825187,1707739849037,-1234.67,0.00022947,2]
[313825188,1707739849047,-500.0,0.00022947,2]
[313825189,1707739849056,-936.13,0.00022947,2]
[313825190,1707739849065,-1860.29,0.00022947,2]
[313825191,1707739849074,-500.0,0.00022947,2]
[313825192,1707739849084,-500.0,0.00022947,2]
[313825193,1707739849093,-540.26,0.00022947,2]
[313825194,1707739849101,-500.0,0.00022947,2]
[313825195,1707739849110,-500.0,0.00022947,2]
[313825196,1707739849119,-500.0,0.00022947,2]
[313825197,1707739849128,-960.59,0.00022947,2]
[313825198,1707739849137,-1466.73,0.00022947,2]
[313825199,1707739849146,-500.0,0.00022947,2]
[313825200,1707739849155,-1057.23,0.00022947,2]
[313825201,1707739849164,-500.0,0.00022947,2]
[313825202,1707739849173,-150.0,0.00022951,2]
[313825203,1707739849181,-150.0,0.00022952,2]
[313825204,1707739849190,-150.0,0.00022957,2]
[313825205,1707739849199,-150.0,0.00022958,2]
[313825206,1707739849208,-150.0,0.00022961,2]
[313825207,1707739849218,-150.0,0.00022963,2]
[313825208,1707739849227,-150.0,0.00022968,2]
[313825209,1707739849237,-150.0,0.00022976,2]
[313825210,1707739849246,-82202.78089838,0.00022988,2]
[313825211,1707739849651,-1825.40465876,0.00022672,3]
[313825212,1707739849660,-9092.69981024,0.00022988,2]
[313825213,1707739849955,-253.52,0.00022988,2]
[313825214,1707739849968,-16508.7931018,0.00022988,2]
[313825215,1707739849979,-2621.92451032,0.00022988,2]
[313825216,1707739850204,-544.21345849,0.00022988,2]
[313825217,1707739850259,-109034.53756371,0.00022988,2]
[313825218,1707739850268,-126617.79030331,0.00022989,3]
[313825219,1707739850281,-9447.19338229,0.00022989,3]
[313825220,1707739863997,206.0,0.00022166,2]
[313825221,1707739883093,122433.0,0.000224,3]
[313825222,1707739899802,158.01,0.00022002,2]
[313825223,1707739915355,67909.0,0.000224,2]
[313825224,1707740050841,569.36,0.00021919,2]
[313825225,1707740100083,394.03,0.00021919,2]
[313825226,1707740181251,156.01,0.00020002,2]
[313825227,1707740197057,1311.0,0.0002798,120]
[313825228,1707740201912,-364.44524763,0.00022478,2]
[313825229,1707740201933,-770.66386256,0.00022479,2]
[313825230,1707740201956,-339.47556128,0.00022479,2]
[313825231,1707740201977,-988.09699467,0.0002248,2]
[313825232,1707740201998,-7433.76384141,0.0002248,2]
[313825233,1707740202021,-5057.90674504,0.00022481,2]
[313825234,1707740202044,-1957.34969805,0.00022482,2]
[313825235,1707740202065,-2605.5728343,0.00022483,2]
[313825236,1707740202093,-13573.92209149,0.00022483,2]
[313825237,1707740211474,2605.5728343,0.00022478,2]
[313825238,1707740214025,-900.0,0.000225,8]
[313825239,1707740214049,-156.01,0.00022532,2]
[313825240,1707740223460,-12910.9776,0.000226,2]
[313825241,1707740280463,4500.24268927,0.00022599,2]
[313825243,1707740464107,205.0,0.00022157,2]
[313825244,1707740603789,328.35,0.00021847,2]
[313825245,1707740633664,156.01,0.00019938,2]
[313825246,1707740714675,1000.0,0.00021862,2]
[313825247,1707740823722,1000.0,0.000224,8]
[313825285,1707741031957,-645.33911199,0.000225,8]
[313825291,1707741032012,-1354.66088801,0.000225,8]
[313825292,1707741032021,-1091.09249993,0.000226,8]
[313825293,1707741032033,-1908.90750007,0.000226,8]
[313825294,1707741032042,-451.99249993,0.00022661,2]
[313825295,1707741032069,-844.50324609,0.00022661,2]
[313825296,1707741032078,-300.0,0.00022668,2]
[313825297,1707741032088,-1930.23351248,0.00022669,3]
[313825298,1707741032097,-7125.26324143,0.00022669,2]
[313825299,1707741032108,-507.48475886,0.00022669,2]
[313825300,1707741032119,-5752.36449449,0.00022669,2]
[313825301,1707741032485,-10956.50896497,0.00022669,2]
[313825302,1707741032495,-446.3017183,0.0002267,2]
[313825303,1707741032505,-1163.28563004,0.0002267,2]
[313825304,1707741032514,-629.88073849,0.0002267,2]
[313825305,1707741032524,-337.49230332,0.0002267,2]
[313825306,1707741032533,-9522.61453264,0.0002267,2]
[313825307,1707741032543,-1893.87720143,0.0002267,2]
[313825308,1707741032552,-404.5297512,0.00022671,2]
[313825309,1707741032562,-5804.44931687,0.00022671,2]
[313825310,1707741032574,-500.0,0.00022672,2]
[313825311,1707741032583,-231.67890333,0.00022672,2]
[313825312,1707741032592,-500.0,0.00022672,2]
[313825313,1707741032601,-500.0,0.00022672,2]
[313825314,1707741032610,-500.0,0.00022672,2]
[313825315,1707741032623,-500.0,0.00022672,2]
[313825316,1707741032634,-500.0,0.00022672,2]
[313825317,1707741032643,-500.0,0.00022672,2]
[313825318,1707741032652,-500.0,0.00022672,2]
[313825319,1707741032662,-500.0,0.00022672,2]
[313825320,1707741032672,-500.0,0.00022672,2]
[313825321,1707741032681,-500.0,0.00022672,2]
[313825322,1707741032691,-500.0,0.00022672,2]
[313825323,1707741032700,-500.0,0.00022672,2]
[313825324,1707741032710,-500.0,0.00022672,2]
[313825325,1707741032719,-500.0,0.00022672,2]
[313825326,1707741032729,-500.0,0.00022672,2]
[313825327,1707741032739,-500.0,0.00022672,2]
[313825328,1707741032749,-500.0,0.00022672,2]
[313825329,1707741032758,-500.0,0.00022672,2]
[313825330,1707741032768,-500.0,0.00022672,2]
[313825331,1707741032777,-500.0,0.00022672,2]
[313825332,1707741032787,-500.0,0.00022672,2]
[313825333,1707741032796,-500.0,0.00022672,2]
[313825334,1707741032806,-500.0,0.00022672,2]
[313825335,1707741032815,-500.0,0.00022672,2]
[313825336,1707741032824,-500.0,0.00022672,2]
[313825337,1707741032834,-500.0,0.00022672,2]
[313825338,1707741032843,-500.0,0.00022672,2]
[313825339,1707741032852,-500.0,0.00022672,2]
[313825340,1707741032862,-500.0,0.00022672,2]
[313825341,1707741032873,-500.0,0.00022672,2]
[313825342,1707741032882,-569.98,0.00022672,2]
[313825343,1707741032896,-500.0,0.00022672,2]
[313825344,1707741032906,-500.0,0.00022672,2]
[313825345,1707741032918,-500.0,0.00022672,2]
[313825346,1707741032928,-151.40916213,0.00022673,2]
[313825347,1707741032945,-371.35901683,0.00022673,2]
[313825348,1707741032955,-500.0,0.00022673,2]
[313825349,1707741032965,-299.99,0.00022673,7]
[313825350,1707741032974,-817.07,0.000227,2]
[313825351,1707741032984,-150.99,0.000227,2]
[313825352,1707741032994,-4000.0,0.000227,8]
[313825353,1707741033004,-418.37,0.000228,2]
[313825354,1707741033013,-342.95,0.000228,2]
[313825355,1707741033023,-421.94,0.000228,2]
[313825356,1707741033032,-342.95,0.000228,2]
[313825357,1707741033042,-836.52,0.000228,2]
[313825358,1707741033051,-418.37,0.000228,2]
[313825359,1707741033061,-418.37,0.000228,2]
[313825360,1707741033071,-418.37,0.000228,2]
[313825361,1707741033080,-421.94,0.000228,2]
[313825362,1707741033090,-342.95,0.000228,2]
[313825363,1707741033099,-421.94,0.000228,2]
[313825364,1707741033108,-421.94,0.000228,2]
[313825365,1707741033118,-342.95,0.000228,2]